[Event "*** Titled Tuesday Blitz"]
[Site "Chess.com"]
[Date "2020.10.20"]
[Round "4"]
[White "TorFredrikKaasen"]
[Black "pedromartinez91"]
[Result "1/2-1/2"]
[WhiteElo "2703"]
[BlackElo "2486"]
[TimeControl "180+1"]
[EndTime "10:43:14 PDT"]
[Termination "Game drawn by repetition"]

1. d4 {[%clk 0:03:00.9]} 1... a6 {[%clk 0:02:55]} 2. c4 {[%clk 0:02:58.9]} 2...
b5 {[%clk 0:02:52.3]} 3. Nf3 {[%clk 0:02:34.2]} 3... bxc4 {[%clk 0:02:50.5]} 4.
e4 {[%clk 0:02:34.1]} 4... Bb7 {[%clk 0:02:50.5]} 5. d5 {[%clk 0:02:26.6]} 5...
Nf6 {[%clk 0:02:47.3]} 6. Nc3 {[%clk 0:02:26.8]} 6... c6 {[%clk 0:02:43.5]} 7.
Bxc4 {[%clk 0:02:25]} 7... cxd5 {[%clk 0:02:43.6]} 8. exd5 {[%clk 0:02:23.4]}
8... e6 {[%clk 0:02:34.6]} 9. O-O {[%clk 0:02:23.2]} 9... Qc8 {[%clk 0:02:21.3]}
10. Bb3 {[%clk 0:02:18.9]} 10... Bb4 {[%clk 0:02:20.5]} 11. Bg5 {[%clk
0:02:02.9]} 11... Bxc3 {[%clk 0:02:20.4]} 12. Rc1 {[%clk 0:01:59.4]} 12... Ne4
{[%clk 0:02:20.8]} 13. bxc3 {[%clk 0:01:18.7]} 13... O-O {[%clk 0:01:55.7]} 14.
Be3 {[%clk 0:00:58.5]} 14... Bxd5 {[%clk 0:01:49.9]} 15. Bxd5 {[%clk 0:00:57.2]}
15... exd5 {[%clk 0:01:50.8]} 16. Qxd5 {[%clk 0:00:56.8]} 16... Qc6 {[%clk
0:01:51.4]} 17. Qd3 {[%clk 0:00:51.7]} 17... a5 {[%clk 0:01:28.1]} 18. Rfe1
{[%clk 0:00:50.6]} 18... Na6 {[%clk 0:01:24.9]} 19. Ne5 {[%clk 0:00:50.2]} 19...
Qa4 {[%clk 0:01:18.5]} 20. Bd4 {[%clk 0:00:46.9]} 20... d5 {[%clk 0:01:13.3]}
21. c4 {[%clk 0:00:34.1]} 21... Qxa2 {[%clk 0:00:56.6]} 22. Ra1 {[%clk
0:00:25.7]} 22... Nb4 {[%clk 0:00:44.8]} 23. Rxa2 {[%clk 0:00:25.3]} 23... Nxd3
{[%clk 0:00:44.2]} 24. Nxd3 {[%clk 0:00:25.6]} 24... dxc4 {[%clk 0:00:40.6]} 25.
Rxe4 {[%clk 0:00:24.4]} 25... cxd3 {[%clk 0:00:41.2]} 26. Re3 {[%clk 0:00:23.4]}
26... Rfc8 {[%clk 0:00:26.5]} 27. f3 {[%clk 0:00:19]} 27... Rc1+ {[%clk
0:00:25.3]} 28. Kf2 {[%clk 0:00:19]} 28... Rd1 {[%clk 0:00:25.9]} 29. Rxa5
{[%clk 0:00:13.4]} 29... Rd8 {[%clk 0:00:22.7]} 30. Ra2 {[%clk 0:00:05.6]} 30...
h6 {[%clk 0:00:18.2]} 31. Bc3 {[%clk 0:00:05.6]} 31... d2 {[%clk 0:00:15.4]} 32.
Bxd2 {[%clk 0:00:02.7]} 32... R1xd2+ {[%clk 0:00:15.5]} 33. Rxd2 {[%clk
0:00:03.6]} 33... Rxd2+ {[%clk 0:00:15.8]} 34. Kg3 {[%clk 0:00:04]} 34... Rd6
{[%clk 0:00:16.2]} 35. h4 {[%clk 0:00:04.2]} 35... h5 {[%clk 0:00:15.9]} 36. Re5
{[%clk 0:00:03.8]} 36... g6 {[%clk 0:00:15.4]} 37. Ra5 {[%clk 0:00:04.4]} 37...
Kg7 {[%clk 0:00:15.8]} 38. Kh3 {[%clk 0:00:05]} 38... Rd1 {[%clk 0:00:15.6]} 39.
Kg3 {[%clk 0:00:05.5]} 39... Rh1 {[%clk 0:00:15.5]} 40. Ra6 {[%clk 0:00:05.7]}
40... Rb1 {[%clk 0:00:15.3]} 41. Rc6 {[%clk 0:00:05.9]} 41... Rb5 {[%clk
0:00:15.1]} 42. Rc2 {[%clk 0:00:06.1]} 42... Rf5 {[%clk 0:00:14.9]} 43. Kh3
{[%clk 0:00:06.5]} 43... Kh6 {[%clk 0:00:14.9]} 44. Kg3 {[%clk 0:00:07]} 44...
Rf6 {[%clk 0:00:15.1]} 45. Rc7 {[%clk 0:00:07.4]} 45... Kg7 {[%clk 0:00:16]} 46.
Rc8 {[%clk 0:00:07.7]} 46... Rf5 {[%clk 0:00:16.5]} 47. Kh3 {[%clk 0:00:07.8]}
47... Kf6 {[%clk 0:00:16.9]} 48. Rc3 {[%clk 0:00:08]} 48... Kg7 {[%clk
0:00:17.4]} 49. g4 {[%clk 0:00:08.4]} 49... Ra5 {[%clk 0:00:16.2]} 50. Kg3
{[%clk 0:00:08.1]} 50... Kg8 {[%clk 0:00:15.1]} 51. g5 {[%clk 0:00:08.4]} 51...
Kg7 {[%clk 0:00:14.9]} 52. Rc7 {[%clk 0:00:08.4]} 52... Ra1 {[%clk 0:00:15]} 53.
Rb7 {[%clk 0:00:08.1]} 53... Rg1+ {[%clk 0:00:15.4]} 54. Kh3 {[%clk 0:00:08.6]}
54... Rh1+ {[%clk 0:00:15.7]} 55. Kg3 {[%clk 0:00:09.2]} 55... Rg1+ {[%clk
0:00:16]} 56. Kh2 {[%clk 0:00:09.4]} 56... Rc1 {[%clk 0:00:14.8]} 57. Rb3 {[%clk
0:00:09.3]} 57... Rc4 {[%clk 0:00:15.2]} 58. Kg3 {[%clk 0:00:09.2]} 58... Rc5
{[%clk 0:00:15.5]} 59. f4 {[%clk 0:00:08.7]} 59... Rc1 {[%clk 0:00:15]} 60. Rb2
{[%clk 0:00:08.6]} 60... Rh1 {[%clk 0:00:15.2]} 61. Rb7 {[%clk 0:00:07.4]} 61...
Rg1+ {[%clk 0:00:15.2]} 62. Kh3 {[%clk 0:00:07.8]} 62... Rh1+ {[%clk 0:00:14.5]}
63. Kg3 {[%clk 0:00:08.3]} 63... Rg1+ {[%clk 0:00:15.1]} 64. Kh3 {[%clk
0:00:08.8]} 64... Rg4 {[%clk 0:00:15.7]} 65. Rb4 {[%clk 0:00:07.4]} 65... Kf8
{[%clk 0:00:16.2]} 66. Re4 {[%clk 0:00:07.3]} 66... f5 {[%clk 0:00:13.6]} 67.
Rb4 {[%clk 0:00:05.2]} 67... Kf7 {[%clk 0:00:13.5]} 68. Rb7+ {[%clk 0:00:04.9]}
68... Ke6 {[%clk 0:00:11.6]} 69. Rb6+ {[%clk 0:00:05.5]} 69... Kf7 {[%clk
0:00:10.5]} 70. Rb7+ {[%clk 0:00:05.9]} 70... Ke6 {[%clk 0:00:06.1]} 71. Rg7
{[%clk 0:00:06.4]} 71... Kd5 {[%clk 0:00:04.2]} 72. Rxg6 {[%clk 0:00:06.4]}
72... Ke4 {[%clk 0:00:05.1]} 73. Rh6 {[%clk 0:00:06.6]} 73... Kf3 {[%clk
0:00:05.6]} 74. Rxh5 {[%clk 0:00:05.7]} 74... Kf2 {[%clk 0:00:04.8]} 75. Kh2
{[%clk 0:00:03.1]} 75... Rg2+ {[%clk 0:00:04.3]} 76. Kh3 {[%clk 0:00:03.6]}
76... Rg3+ {[%clk 0:00:04.4]} 77. Kh2 {[%clk 0:00:04]} 77... Rg2+ {[%clk
0:00:04.9]} 78. Kh3 {[%clk 0:00:04.7]} 78... Rg3+ {[%clk 0:00:04.7]} 79. Kh2
{[%clk 0:00:05.2]} 79... Rg2+ {[%clk 0:00:03.4]} 1/2-1/2

[Event "*** Titled Tuesday Blitz"]
[Site "Chess.com"]
[Date "2020.10.20"]
[Round "4"]
[White "Me_ch_an"]
[Black "Ind1anStar"]
[Result "1/2-1/2"]
[WhiteElo "2328"]
[BlackElo "2442"]
[TimeControl "180+1"]
[EndTime "10:43:17 PDT"]
[Termination "Game drawn by repetition"]

1. e4 {[%clk 0:03:00.9]} 1... e6 {[%clk 0:03:00.4]} 2. d4 {[%clk 0:03:00.6]}
2... d5 {[%clk 0:03:00.7]} 3. e5 {[%clk 0:03:01]} 3... c5 {[%clk 0:03:00.8]} 4.
c3 {[%clk 0:03:01.4]} 4... Nc6 {[%clk 0:03:01.3]} 5. g3 {[%clk 0:03:01.1]} 5...
Qb6 {[%clk 0:02:57.1]} 6. Ne2 {[%clk 0:03:01]} 6... f6 {[%clk 0:02:51.7]} 7. Nf4
{[%clk 0:03:00]} 7... cxd4 {[%clk 0:02:35]} 8. Qh5+ {[%clk 0:02:57.4]} 8... Kd8
{[%clk 0:02:35]} 9. Ng6 {[%clk 0:02:56.8]} 9... dxc3 {[%clk 0:02:06.8]} 10. bxc3
{[%clk 0:02:44]} 10... Bc5 {[%clk 0:01:27.4]} 11. Nxh8 {[%clk 0:02:42.2]} 11...
Bxf2+ {[%clk 0:01:27.5]} 12. Kd1 {[%clk 0:02:31]} 12... Bd7 {[%clk 0:01:27.4]}
13. Ba3 {[%clk 0:02:17]} 13... Nxe5 {[%clk 0:01:21.8]} 14. Nf7+ {[%clk
0:02:11.2]} 14... Nxf7 {[%clk 0:01:10.8]} 15. Qxf7 {[%clk 0:02:12.1]} 15... Kc7
{[%clk 0:00:30.8]} 16. Nd2 {[%clk 0:01:57.2]} 16... Nh6 {[%clk 0:00:29.9]} 17.
Qe7 {[%clk 0:01:40.7]} 17... Nf5 {[%clk 0:00:29.9]} 18. Qb4 {[%clk 0:01:38.7]}
18... Qc6 {[%clk 0:00:23.3]} 19. Qf4+ {[%clk 0:01:17.2]} 19... e5 {[%clk
0:00:20.7]} 20. Qxf2 {[%clk 0:01:14]} 20... Qa4+ {[%clk 0:00:21]} 21. Nb3 {[%clk
0:01:12.7]} 21... Qxa3 {[%clk 0:00:20.7]} 22. Qc5+ {[%clk 0:01:12.8]} 22... Qxc5
{[%clk 0:00:20.8]} 23. Nxc5 {[%clk 0:01:13.7]} 23... Bc6 {[%clk 0:00:19.6]} 24.
Kd2 {[%clk 0:01:08.2]} 24... Kd6 {[%clk 0:00:17.5]} 25. Nb3 {[%clk 0:01:05.5]}
25... d4 {[%clk 0:00:15.5]} 26. Rg1 {[%clk 0:01:02.1]} 26... dxc3+ {[%clk
0:00:16]} 27. Kxc3 {[%clk 0:01:02.5]} 27... Rc8 {[%clk 0:00:16.4]} 28. Rd1+
{[%clk 0:01:01.2]} 28... Ke7 {[%clk 0:00:14.6]} 29. Kb2 {[%clk 0:00:57.9]} 29...
Bf3 {[%clk 0:00:12.9]} 30. Rc1 {[%clk 0:00:56.4]} 30... Rd8 {[%clk 0:00:12.2]}
31. Bh3 {[%clk 0:00:54.3]} 31... Nd4 {[%clk 0:00:11]} 32. Nxd4 {[%clk
0:00:52.3]} 32... Rxd4 {[%clk 0:00:11.9]} 33. Rc7+ {[%clk 0:00:50.2]} 33... Kd6
{[%clk 0:00:12.4]} 34. Rd7+ {[%clk 0:00:50.4]} 34... Kc5 {[%clk 0:00:11.9]} 35.
Rxd4 {[%clk 0:00:49.4]} 35... Kxd4 {[%clk 0:00:12.8]} 36. Bg2 {[%clk 0:00:48.2]}
36... e4 {[%clk 0:00:10.9]} 37. Kc2 {[%clk 0:00:44.3]} 37... Ke3 {[%clk
0:00:10.6]} 38. Bh3 {[%clk 0:00:36.1]} 38... Kf2 {[%clk 0:00:10.6]} 39. Rf1+
{[%clk 0:00:34.1]} 39... Ke2 {[%clk 0:00:11.3]} 40. Rb1 {[%clk 0:00:17.7]} 40...
b6 {[%clk 0:00:11]} 41. Kc3 {[%clk 0:00:12]} 41... e3 {[%clk 0:00:09.9]} 42.
Bf1+ {[%clk 0:00:11.6]} 42... Kf2 {[%clk 0:00:10]} 43. Bd3 {[%clk 0:00:11.7]}
43... e2 {[%clk 0:00:09.6]} 44. Bxe2 {[%clk 0:00:11.9]} 44... Bxe2 {[%clk
0:00:09.7]} 45. Rb2 {[%clk 0:00:12.5]} 45... Ke3 {[%clk 0:00:10.2]} 46. h4
{[%clk 0:00:12.3]} 46... f5 {[%clk 0:00:10.6]} 47. a4 {[%clk 0:00:09.6]} 47...
h6 {[%clk 0:00:11.1]} 48. Rd2 {[%clk 0:00:09.2]} 48... g5 {[%clk 0:00:10.7]} 49.
hxg5 {[%clk 0:00:09.6]} 49... hxg5 {[%clk 0:00:11.6]} 50. Rd7 {[%clk 0:00:09.8]}
50... a6 {[%clk 0:00:10.9]} 51. Rb7 {[%clk 0:00:08.5]} 51... f4 {[%clk
0:00:10.8]} 52. gxf4 {[%clk 0:00:08.3]} 52... gxf4 {[%clk 0:00:11.7]} 53. Rxb6
{[%clk 0:00:08.8]} 53... f3 {[%clk 0:00:11.6]} 54. Re6+ {[%clk 0:00:07.8]} 54...
Kf2 {[%clk 0:00:12]} 55. Kd2 {[%clk 0:00:07.7]} 55... Kg3 {[%clk 0:00:11.4]} 56.
Rf6 {[%clk 0:00:06.9]} 56... Bc4 {[%clk 0:00:10.4]} 57. Ke3 {[%clk 0:00:06.7]}
57... Be2 {[%clk 0:00:10.8]} 58. Rg6+ {[%clk 0:00:05.4]} 58... Kh4 {[%clk
0:00:11.4]} 59. Kf2 {[%clk 0:00:05.7]} 59... Kh5 {[%clk 0:00:11]} 60. Re6 {[%clk
0:00:05.4]} 60... Kg5 {[%clk 0:00:11.5]} 61. Re5+ {[%clk 0:00:03.8]} 61... Kf6
{[%clk 0:00:11.6]} 62. Rc5 {[%clk 0:00:03.1]} 62... Ke6 {[%clk 0:00:12.1]} 63.
a5 {[%clk 0:00:04]} 63... Kd6 {[%clk 0:00:12.5]} 64. Rg5 {[%clk 0:00:04.2]}
64... Kc6 {[%clk 0:00:13]} 65. Ke3 {[%clk 0:00:04.4]} 65... Kd6 {[%clk
0:00:13.1]} 66. Rf5 {[%clk 0:00:04.5]} 66... Kc6 {[%clk 0:00:13.2]} 67. Kd4
{[%clk 0:00:04.1]} 67... Kd6 {[%clk 0:00:13]} 68. Rf6+ {[%clk 0:00:04.5]} 68...
Ke7 {[%clk 0:00:13.7]} 69. Ke5 {[%clk 0:00:04.2]} 69... Kd7 {[%clk 0:00:12.1]}
70. Kd5 {[%clk 0:00:02.7]} 70... Ke7 {[%clk 0:00:12.4]} 71. Rf4 {[%clk 0:00:03]}
71... Kd7 {[%clk 0:00:07.8]} 72. Rf7+ {[%clk 0:00:03.1]} 72... Ke8 {[%clk
0:00:08.4]} 73. Rf4 {[%clk 0:00:02.5]} 73... Ke7 {[%clk 0:00:08.9]} 74. Kc5
{[%clk 0:00:02.7]} 74... Ke6 {[%clk 0:00:08.9]} 75. Kd4 {[%clk 0:00:02.8]} 75...
Kd6 {[%clk 0:00:09.2]} 76. Rf6+ {[%clk 0:00:03.1]} 76... Ke7 {[%clk 0:00:09.9]}
77. Rf4 {[%clk 0:00:03.3]} 77... Ke6 {[%clk 0:00:10.4]} 78. Rf8 {[%clk
0:00:02.5]} 78... Ke7 {[%clk 0:00:10.2]} 79. Rf4 {[%clk 0:00:03.1]} 79... Ke6
{[%clk 0:00:10.8]} 80. Rf8 {[%clk 0:00:03.1]} 80... Ke7 {[%clk 0:00:11.1]} 81.
Rf4 {[%clk 0:00:03.1]} 1/2-1/2

[Event "*** Titled Tuesday Blitz"]
[Site "Chess.com"]
[Date "2020.10.20"]
[Round "4"]
[White "Chernobay_Artem"]
[Black "SergeyShtyka"]
[Result "1-0"]
[WhiteElo "2578"]
[BlackElo "2264"]
[TimeControl "180+1"]
[EndTime "10:43:22 PDT"]
[Termination "Chernobay_Artem won on time"]

1. d4 {[%clk 0:03:00.9]} 1... c5 {[%clk 0:02:59.8]} 2. d5 {[%clk 0:03:00.7]}
2... e5 {[%clk 0:02:59.6]} 3. e4 {[%clk 0:02:59.1]} 3... d6 {[%clk 0:02:59.8]}
4. Nc3 {[%clk 0:02:59.2]} 4... Be7 {[%clk 0:03:00.2]} 5. Nf3 {[%clk 0:02:59.3]}
5... Bg4 {[%clk 0:02:59]} 6. h3 {[%clk 0:02:57.4]} 6... Bxf3 {[%clk 0:02:58.9]}
7. Qxf3 {[%clk 0:02:58.3]} 7... a6 {[%clk 0:02:58.8]} 8. a4 {[%clk 0:02:57.5]}
8... Bg5 {[%clk 0:02:58.3]} 9. Bxg5 {[%clk 0:02:58.1]} 9... Qxg5 {[%clk
0:02:58.1]} 10. Qg4 {[%clk 0:02:58.8]} 10... Qxg4 {[%clk 0:02:47.9]} 11. hxg4
{[%clk 0:02:59.7]} 11... h6 {[%clk 0:02:46]} 12. g5 {[%clk 0:02:56.6]} 12... Nd7
{[%clk 0:02:32.6]} 13. a5 {[%clk 0:02:54.7]} 13... h5 {[%clk 0:02:27.2]} 14. Ra3
{[%clk 0:02:48.7]} 14... g6 {[%clk 0:02:26.3]} 15. Rb3 {[%clk 0:02:47.6]} 15...
O-O-O {[%clk 0:02:20.2]} 16. Na4 {[%clk 0:02:44.2]} 16... f6 {[%clk 0:02:14.5]}
17. Nb6+ {[%clk 0:01:50.8]} 17... Nxb6 {[%clk 0:02:11]} 18. Rxb6 {[%clk
0:01:51.7]} 18... fxg5 {[%clk 0:02:06.2]} 19. Rh3 {[%clk 0:01:52]} 19... Nf6
{[%clk 0:01:57.6]} 20. Rhb3 {[%clk 0:01:51.4]} 20... Rh7 {[%clk 0:01:57.8]} 21.
f3 {[%clk 0:01:42.7]} 21... g4 {[%clk 0:01:55.4]} 22. fxg4 {[%clk 0:01:33.6]}
22... hxg4 {[%clk 0:01:50.9]} 23. Bd3 {[%clk 0:01:29.8]} 23... Rc7 {[%clk
0:01:45.2]} 24. c4 {[%clk 0:01:20.6]} 24... Rh7 {[%clk 0:01:40]} 25. Kf2 {[%clk
0:01:19.3]} 25... Nh5 {[%clk 0:01:35.6]} 26. Be2 {[%clk 0:01:12.5]} 26... Nf6
{[%clk 0:01:29.8]} 27. Ke3 {[%clk 0:01:07.5]} 27... Rh2 {[%clk 0:01:27.1]} 28.
Rxb7 {[%clk 0:01:04.1]} 28... Rxg2 {[%clk 0:01:23.4]} 29. Bd3 {[%clk 0:00:46.6]}
29... Nd7 {[%clk 0:01:11.7]} 30. Ra7 {[%clk 0:00:42.6]} 30... Rf8 {[%clk
0:00:59.2]} 31. Ra8+ {[%clk 0:00:42.9]} 31... Kc7 {[%clk 0:00:59.5]} 32. Rxf8
{[%clk 0:00:41.5]} 32... Nxf8 {[%clk 0:00:59.5]} 33. Rb6 {[%clk 0:00:41.4]}
33... Nd7 {[%clk 0:00:53]} 34. Rc6+ {[%clk 0:00:41.2]} 34... Kd8 {[%clk
0:00:50.8]} 35. Rxd6 {[%clk 0:00:41.3]} 35... Rxb2 {[%clk 0:00:48]} 36. Rxg6
{[%clk 0:00:37.7]} 36... g3 {[%clk 0:00:44.3]} 37. Rxa6 {[%clk 0:00:30.1]} 37...
g2 {[%clk 0:00:43.5]} 38. Rg6 {[%clk 0:00:29.6]} 38... Ra2 {[%clk 0:00:43.3]}
39. Be2 {[%clk 0:00:25.8]} 39... Rxa5 {[%clk 0:00:41.6]} 40. Rxg2 {[%clk
0:00:26.4]} 40... Ra3+ {[%clk 0:00:41.5]} 41. Bd3 {[%clk 0:00:18.9]} 41... Nb6
{[%clk 0:00:41]} 42. Rg8+ {[%clk 0:00:18.3]} 42... Ke7 {[%clk 0:00:40]} 43. Kd2
{[%clk 0:00:17.9]} 43... Ra2+ {[%clk 0:00:38.6]} 44. Kc3 {[%clk 0:00:17.5]}
44... Ra3+ {[%clk 0:00:39.1]} 45. Kc2 {[%clk 0:00:17.6]} 45... Ra2+ {[%clk
0:00:38.5]} 46. Kb3 {[%clk 0:00:17.7]} 46... Rh2 {[%clk 0:00:34.7]} 47. Rg6
{[%clk 0:00:16.4]} 47... Nd7 {[%clk 0:00:32.4]} 48. Re6+ {[%clk 0:00:12.1]}
48... Kd8 {[%clk 0:00:32.3]} 49. Kc3 {[%clk 0:00:09.8]} 49... Rh3 {[%clk
0:00:32.1]} 50. Kd2 {[%clk 0:00:07.9]} 50... Rh2+ {[%clk 0:00:31.7]} 51. Be2
{[%clk 0:00:08.3]} 51... Kc7 {[%clk 0:00:30.9]} 52. Ke3 {[%clk 0:00:08.3]} 52...
Rh3+ {[%clk 0:00:29]} 53. Bf3 {[%clk 0:00:07.9]} 53... Kd8 {[%clk 0:00:26.6]}
54. Kf2 {[%clk 0:00:07.3]} 54... Rh2+ {[%clk 0:00:25.1]} 55. Bg2 {[%clk
0:00:07]} 55... Rh7 {[%clk 0:00:19.8]} 56. Kg3 {[%clk 0:00:07.2]} 56... Rg7+
{[%clk 0:00:17.9]} 57. Kh2 {[%clk 0:00:06.1]} 57... Kc7 {[%clk 0:00:15.7]} 58.
Bh3 {[%clk 0:00:06.1]} 58... Rf7 {[%clk 0:00:12.5]} 59. Rc6+ {[%clk 0:00:06.1]}
59... Kd8 {[%clk 0:00:12.3]} 60. Bxd7 {[%clk 0:00:06.5]} 60... Kxd7 {[%clk
0:00:11.3]} 61. Rxc5 {[%clk 0:00:06.5]} 61... Rf4 {[%clk 0:00:11.9]} 62. Kg3
{[%clk 0:00:04.3]} 62... Rxe4 {[%clk 0:00:12]} 63. Kf3 {[%clk 0:00:04.9]} 63...
Re1 {[%clk 0:00:10.7]} 64. Kf2 {[%clk 0:00:04.9]} 64... Re4 {[%clk 0:00:10.1]}
65. Rc6 {[%clk 0:00:05.1]} 65... Ke7 {[%clk 0:00:06.6]} 66. c5 {[%clk
0:00:04.9]} 66... Rd4 {[%clk 0:00:05.8]} 67. d6+ {[%clk 0:00:04.2]} 67... Ke6
{[%clk 0:00:06.1]} 68. Rc7 {[%clk 0:00:04.6]} 68... e4 {[%clk 0:00:05.8]} 69.
Re7+ {[%clk 0:00:03.9]} 69... Kf6 {[%clk 0:00:05.6]} 70. Ke3 {[%clk 0:00:02.7]}
70... Rc4 {[%clk 0:00:05.2]} 71. Rc7 {[%clk 0:00:02.9]} 71... Ke5 {[%clk
0:00:05.6]} 72. d7 {[%clk 0:00:02.6]} 72... Rc3+ {[%clk 0:00:05.7]} 73. Ke2
{[%clk 0:00:03.2]} 73... Rd3 {[%clk 0:00:06.2]} 74. c6 {[%clk 0:00:03.6]} 74...
Ke6 {[%clk 0:00:05.9]} 75. Rc8 {[%clk 0:00:04]} 75... Ke7 {[%clk 0:00:02.2]} 76.
Re8+ {[%clk 0:00:04.3]} 76... Kf7 {[%clk 0:00:02]} 77. d8=Q {[%clk 0:00:05.2]}
77... Rxd8 {[%clk 0:00:02.3]} 78. Rxd8 {[%clk 0:00:06.1]} 1-0

[Event "*** Titled Tuesday Blitz"]
[Site "Chess.com"]
[Date "2020.10.20"]
[Round "4"]
[White "teacher4chess"]
[Black "GMaka"]
[Result "0-1"]
[WhiteElo "2041"]
[BlackElo "2372"]
[TimeControl "180+1"]
[EndTime "10:43:32 PDT"]
[Termination "GMaka won on time"]

1. d4 {[%clk 0:02:59.5]} 1... Nf6 {[%clk 0:02:59.3]} 2. Nc3 {[%clk 0:02:58.5]}
2... d5 {[%clk 0:02:58.6]} 3. Bf4 {[%clk 0:02:57.9]} 3... c6 {[%clk 0:02:58.5]}
4. Nf3 {[%clk 0:02:57.6]} 4... g6 {[%clk 0:02:58.1]} 5. e3 {[%clk 0:02:57.3]}
5... Bg7 {[%clk 0:02:58.1]} 6. Bd3 {[%clk 0:02:57]} 6... O-O {[%clk 0:02:58.7]}
7. O-O {[%clk 0:02:56]} 7... Bf5 {[%clk 0:02:54]} 8. Bxf5 {[%clk 0:02:52.7]}
8... gxf5 {[%clk 0:02:54.9]} 9. Ne5 {[%clk 0:02:46.2]} 9... e6 {[%clk
0:02:52.6]} 10. Bg5 {[%clk 0:02:40.1]} 10... Nbd7 {[%clk 0:02:46.7]} 11. Nxd7
{[%clk 0:02:19.9]} 11... Qxd7 {[%clk 0:02:47.6]} 12. Bxf6 {[%clk 0:02:19.1]}
12... Bxf6 {[%clk 0:02:47.4]} 13. f4 {[%clk 0:02:13.5]} 13... Kh8 {[%clk
0:02:46.3]} 14. Rf3 {[%clk 0:02:10.4]} 14... Rg8 {[%clk 0:02:45.8]} 15. Rh3
{[%clk 0:02:10]} 15... Rg6 {[%clk 0:02:42.7]} 16. Qh5 {[%clk 0:02:06.7]} 16...
h6 {[%clk 0:02:39]} 17. Rf1 {[%clk 0:02:00]} 17... Rag8 {[%clk 0:02:37.7]} 18.
Rf2 {[%clk 0:01:59.5]} 18... c5 {[%clk 0:02:28.7]} 19. Qd1 {[%clk 0:01:31.3]}
19... b5 {[%clk 0:02:08.1]} 20. dxc5 {[%clk 0:01:27.4]} 20... Qc6 {[%clk
0:01:55.7]} 21. Ne2 {[%clk 0:01:20]} 21... Qxc5 {[%clk 0:01:50.4]} 22. Nd4
{[%clk 0:01:16]} 22... b4 {[%clk 0:01:43.9]} 23. Qd3 {[%clk 0:00:59.8]} 23...
Qc4 {[%clk 0:01:08.3]} 24. Qxc4 {[%clk 0:00:53.2]} 24... dxc4 {[%clk 0:01:09.2]}
25. c3 {[%clk 0:00:52.8]} 25... bxc3 {[%clk 0:01:07.9]} 26. bxc3 {[%clk
0:00:52.7]} 26... Rb8 {[%clk 0:01:08.3]} 27. Rhf3 {[%clk 0:00:48.2]} 27... Rgg8
{[%clk 0:01:06.7]} 28. Rc2 {[%clk 0:00:36.7]} 28... Rb1+ {[%clk 0:01:01.5]} 29.
Rf1 {[%clk 0:00:36.1]} 29... Rgb8 {[%clk 0:01:02.4]} 30. g3 {[%clk 0:00:34.6]}
30... a5 {[%clk 0:00:56.1]} 31. Rxb1 {[%clk 0:00:33]} 31... Rxb1+ {[%clk
0:00:57]} 32. Kf2 {[%clk 0:00:32.2]} 32... a4 {[%clk 0:00:57.3]} 33. Nc6 {[%clk
0:00:28]} 33... a3 {[%clk 0:00:44.9]} 34. Na5 {[%clk 0:00:27.3]} 34... Rb2
{[%clk 0:00:20.7]} 35. Re2 {[%clk 0:00:26.4]} 35... Bxc3 {[%clk 0:00:15]} 36.
Nxc4 {[%clk 0:00:25.8]} 36... Rb1 {[%clk 0:00:07.1]} 37. Nxa3 {[%clk 0:00:24.9]}
37... Ra1 {[%clk 0:00:07.5]} 38. Nb5 {[%clk 0:00:24.3]} 38... Bf6 {[%clk
0:00:07.2]} 39. Nd4 {[%clk 0:00:23.1]} 39... Kg7 {[%clk 0:00:07.7]} 40. Nb3
{[%clk 0:00:20.5]} 40... Rb1 {[%clk 0:00:08]} 41. Kg2 {[%clk 0:00:19.3]} 41...
Kg6 {[%clk 0:00:08]} 42. Rc2 {[%clk 0:00:18.8]} 42... h5 {[%clk 0:00:07]} 43.
Kf2 {[%clk 0:00:18.7]} 43... h4 {[%clk 0:00:07.2]} 44. Nd2 {[%clk 0:00:16.5]}
44... Ra1 {[%clk 0:00:06.7]} 45. Nf3 {[%clk 0:00:15.7]} 45... h3 {[%clk
0:00:06.9]} 46. Ne5+ {[%clk 0:00:15]} 46... Bxe5 {[%clk 0:00:07]} 47. fxe5
{[%clk 0:00:15]} 47... Rh1 {[%clk 0:00:06.5]} 48. Kf3 {[%clk 0:00:15.1]} 48...
Kg5 {[%clk 0:00:06.8]} 49. a4 {[%clk 0:00:14.5]} 49... Ra1 {[%clk 0:00:06.6]}
50. Rc4 {[%clk 0:00:14.3]} 50... Ra2 {[%clk 0:00:06.8]} 51. Rh4 {[%clk
0:00:13.5]} 51... Rxh2 {[%clk 0:00:05.4]} 52. a5 {[%clk 0:00:12.9]} 52... Ra2
{[%clk 0:00:05]} 53. Rxh3 {[%clk 0:00:12.8]} 53... Rxa5 {[%clk 0:00:05.9]} 54.
Rh7 {[%clk 0:00:12.3]} 54... Rxe5 {[%clk 0:00:06.5]} 55. Rxf7 {[%clk 0:00:12.3]}
55... Re4 {[%clk 0:00:07.3]} 56. Re7 {[%clk 0:00:11.6]} 56... Kf6 {[%clk
0:00:08.2]} 57. Re8 {[%clk 0:00:11.2]} 57... Rg4 {[%clk 0:00:08.3]} 58. Rf8+
{[%clk 0:00:11]} 58... Ke5 {[%clk 0:00:08.8]} 59. Re8 {[%clk 0:00:11.1]} 59...
Rb4 {[%clk 0:00:09.2]} 60. Rd8 {[%clk 0:00:11]} 60... Rb3 {[%clk 0:00:09.7]} 61.
Rd4 {[%clk 0:00:10]} 61... Kf6 {[%clk 0:00:10.6]} 62. Rd6 {[%clk 0:00:09.4]}
62... Ke7 {[%clk 0:00:10.3]} 63. Ra6 {[%clk 0:00:09.4]} 63... Kf6 {[%clk
0:00:10.6]} 64. Rc6 {[%clk 0:00:08.6]} 64... Ke5 {[%clk 0:00:10.6]} 65. Rc5+
{[%clk 0:00:08.5]} 65... Kd6 {[%clk 0:00:10.6]} 66. Ra5 {[%clk 0:00:08.3]} 66...
e5 {[%clk 0:00:10.3]} 67. Ra6+ {[%clk 0:00:07.8]} 67... Kd5 {[%clk 0:00:10.4]}
68. Ra5+ {[%clk 0:00:07.9]} 68... Ke6 {[%clk 0:00:10.9]} 69. Ra6+ {[%clk
0:00:08]} 69... Kf7 {[%clk 0:00:11.5]} 70. Rc6 {[%clk 0:00:07.4]} 70... Rb2
{[%clk 0:00:11.3]} 71. Rc5 {[%clk 0:00:06.7]} 71... Kf6 {[%clk 0:00:11.5]} 72.
Rc6+ {[%clk 0:00:06.7]} 72... Kg5 {[%clk 0:00:11.9]} 73. Re6 {[%clk 0:00:06.5]}
73... e4+ {[%clk 0:00:11.9]} 74. Rxe4 {[%clk 0:00:04.9]} 74... fxe4+ {[%clk
0:00:12.8]} 75. Kxe4 {[%clk 0:00:04.8]} 75... Kg4 {[%clk 0:00:13.7]} 76. Kd4
{[%clk 0:00:04.1]} 76... Kxg3 {[%clk 0:00:14.6]} 77. e4 {[%clk 0:00:03.8]} 77...
Kf4 {[%clk 0:00:15.5]} 78. e5 {[%clk 0:00:03.7]} 78... Re2 {[%clk 0:00:15.9]}
79. Kd5 {[%clk 0:00:03.4]} 79... Rxe5+ {[%clk 0:00:16.3]} 0-1